[Event "Hungarian Super League 2024-25"]
[Site "Hungary"]
[Date "2024.11.02"]
[Round "1.33"]
[White "Kantor, Gergely"]
[Black "To, Nhat Minh"]
[Result "1/2-1/2"]
[ECO "C54"]
[WhiteElo "2554"]
[BlackElo "2314"]
[Annotator "RC"]
[PlyCount "144"]
[EventDate "2024.10.30"]
[EventType "team-tourn"]
[EventCountry "HUN"]
[SourceTitle "playchess.com"]
[Source "ChessBase"]
[SourceQuality "1"]
[TimeControl "40/5400+30:1800+30"]

1. e4 {[%emt 0:00:33]} e5 {[%emt 0:00:34]} 2. Nf3 {[%emt 0:00:03]} Nc6 {[%emt 0:00:04]} 3. Bc4 {[%emt 0:00:23]} Bc5 {[%emt 0:00:05]} 4. c3 {[%emt 0:00:11]} Nf6 {[%emt 0:00:05]} 5. d3 {[%emt 0:00:03]} d6 {[%emt 0:00:06]} 6. Bg5 {[%emt 0:00:27]} h6 {[%emt 0:00:30]} 7. Bh4 {[%emt 0:00:04]} a5 {[%emt 0:01:49]} 8. O-O {[%emt 0:00:54]} Ba7 {[%emt 0:03:22]} 9. Nbd2 {[%emt 0:01:00]} g5 {[%emt 0:02:08]} 10. Bg3 {[%emt 0:00:15]} O-O {[%emt 0:01:10]} 11. a3 {[%emt 0:07:46]} Nh7 {[%emt 0:02:25]} 12. Kh1 {[%emt 0:06:34]} Kg7 {[%emt 0:03:21]} 13. b4 {[%emt 0:04:45]} f5 {[%emt 0:00:45]} 14. exf5 {[%emt 0:01:06]} Bxf5 {[%emt 0:00:25]} 15. d4 {[%emt 0:03:14]} exd4 {[%emt 0:03:53]} 16. b5 {[%emt 0:00:34]} dxc3 {[%emt 0:04:21]} 17. bxc6 {[%emt 0:01:46]} b5 {[%emt 0:01:47]} 18. Bxb5 {[%emt 0:02:33]} cxd2 {[%emt 0:01:38]} 19. Qxd2 {[%emt 0:03:33]} Qf6 {[%emt 0:01:14]} 20. Rfe1 {[%emt 0:08:15]} Kg6 {[%emt 0:04:30]} 21. Rad1 {[%emt 0:09:22]} Bb6 {[%emt 0:04:59]} 22. Nd4 {[%emt 0:05:02]} Bxd4 {[%emt 0:00:30]} 23. Qxd4 {[%emt 0:00:05]} Rfb8 {[%emt 0:12:49]} 24. Qc4 {[%emt 0:11:42]} Re8 {[%emt 0:11:59]} 25. f3 {[%emt 0:02:34]} Qb2 {[%emt 0:05:43]} 26. a4 {[%emt 0:08:46]} Nf6 {[%emt 0:03:18]} 27. Rg1 {[%emt 0:03:03]} Re3 {[%emt 0:07:49]} 28. Be1 {[%emt 0:02:18]} Be6 {[%emt 0:03:15]} 29. Qf1 {[%emt 0:01:04]} Bf5 {[%emt 0:09:29]} 30. Bf2 {[%emt 0:00:46]} Re7 {[%emt 0:01:23]} 31. g4 {[%emt 0:03:41]} Be6 {[%emt 0:01:37]} 32. Bd4 {[%emt 0:06:56]} Qb3 {[%emt 0:00:01]} 33. Rg3 {[%emt 0:01:48]} Rae8 {[%emt 0:02:43]} 34. Kg1 {[%emt 0:02:01]} Bd5 {[%emt 0:00:26]} 35. Rb1 {[%emt 0:00:51]} Qa2 {[%emt 0:01:00]} 36. f4 {[%emt 0:02:47]} gxf4 {[%emt 0:02:24]} 37. Bd3+ {[%emt 0:01:14]} Kf7 {[%emt 0:02:34]} 38. Bxf6 {[%emt 0:00:41]} Qxb1 {[%emt 0:01:35]} 39. Bxb1 {[%emt 0:00:29]} Re1 {[%emt 0:00:01]} 40. Rd3 {[%emt 0:00:00]} Bc4 {[%emt 0:00:00]} 41. Bd4 {[%emt 0:05:14]} Rxf1+ {[%emt 0:17:31]} 42. Kxf1 {[%emt 0:00:02]} Re4 {[%emt 0:00:27]} 43. Ba7 {[%emt 0:03:20]} Ke7 {[%emt 0:01:20]} 44. h4 {[%emt 0:05:26]} Bxd3+ {[%emt 0:01:49]} 45. Bxd3 {[%emt 0:00:01]} Rxa4 {[%emt 0:00:09]} 46. Bb8 {[%emt 0:15:14]} Kd8 {[%emt 0:00:22]} 47. g5 {[%emt 0:00:15]} hxg5 {[%emt 0:02:03]} 48. hxg5 {[%emt 0:01:25]} Rb4 {[%emt 0:03:22]} 49. g6 {[%emt 0:04:01]} Rxb8 {[%emt 0:00:12]} 50. g7 {[%emt 0:00:02]} Ke7 {[%emt 0:00:06]} 51. Bc4 {[%emt 0:00:04]} Kf6 {[%emt 0:02:45]} 52. g8=R {[%emt 0:00:06]} Rxg8 {[%emt 0:00:28]} 53. Bxg8 {[%emt 0:00:02]} Ke5 {[%emt 0:00:17]} 54. Bb3 {[%emt 0:00:43]} Kd4 {[%emt 0:01:33]} 55. Ke2 {[%emt 0:00:16]} Kc5 {[%emt 0:01:14]} 56. Kf3 {[%emt 0:01:01]} Kxc6 {[%emt 0:00:45]} 57. Kxf4 {[%emt 0:00:08]} Kc5 {[%emt 0:01:29]} 58. Ke3 {[%emt 0:01:06]} Kb4 {[%emt 0:00:23]} 59. Bd5 {[%emt 0:00:17]} Kc3 {[%emt 0:00:33]} 60. Bc6 {[%emt 0:00:28]} Kb3 {[%emt 0:00:29]} 61. Kd2 {[%emt 0:01:29]} Kc4 {[%emt 0:02:42]} 62. Kc2 {[%emt 0:00:56]} d5 {[%emt 0:00:16]} 63. Kd2 {[%emt 0:00:30]} Kc5 {[%emt 0:00:42]} 64. Ba4 {[%emt 0:00:30]} Kd4 {[%emt 0:00:54]} 65. Bc6 {[%emt 0:00:07]} Kc4 {[%emt 0:00:14]} 66. Kc2 {[%emt 0:00:34]} Kc5 {[%emt 0:00:42]} 67. Ba4 {[%emt 0:00:21]} d4 {[%emt 0:02:44]} 68. Kd3 {[%emt 0:00:33]} Kb4 {[%emt 0:00:21]} 69. Bc6 {[%emt 0:00:19]} Kc5 {[%emt 0:00:17]} 70. Ba4 {[%emt 0:00:21]} Kd5 {[%emt 0:00:07]} 71. Bb3+ {[%emt 0:00:41]} Ke5 {[%emt 0:00:09]} 72. Ba4 {[%emt 0:00:32]} c5 {[%emt 0:00:09]} 1/2-1/2

[Event "Hungarian Super League 2024-25"]
[Site "Hungary"]
[Date "2024.11.02"]
[Round "1.34"]
[White "Bakos, Balazs"]
[Black "Antal, Gergely"]
[Result "1/2-1/2"]
[ECO "D80"]
[WhiteElo "2380"]
[BlackElo "2543"]
[Annotator "TA"]
[PlyCount "71"]
[EventDate "2024.10.30"]
[EventType "team-tourn"]
[EventCountry "HUN"]
[SourceTitle "playchess.com"]
[Source "ChessBase"]
[SourceQuality "1"]
[TimeControl "40/5400+30:1800+30"]

{[%evp 14,71,15,11,19,0,12,0,0,0,0,0,22,2,0,0,0,6,7,0,8,0,0,0,0,0,6,5,0,0,0,0,0,0,0,0,0,0,0,0,8,0,0,0,0,0,0,0,0,0,0,0,0,0,0,0,0,0,0,0]} 1. d4 {[%emt 0:00:34]} Nf6 {[%emt 0:00:57]} 2. c4 {[%emt 0:00:33]} g6 {[%emt 0:00:06]} 3. Nc3 {[%emt 0:00:29]} d5 {[%emt 0:00:06]} 4. Bd2 {[%emt 0:07:53]} Bg7 {[%emt 0:07:46]} 5. cxd5 {[%emt 0:00:13]} Nxd5 {[%emt 0:00:05]} 6. e4 {[%emt 0:00:12]} Nxc3 {[%emt 0:00:12]} 7. Bxc3 {[%emt 0:00:08]} O-O {[%emt 0:02:17]} 8. Qd2 {[%emt 0:03:00] The position is equal.} c5 {[%emt 0:01:50]} 9. d5 {[%emt 0:15:23]} e6 {[%emt 0:00:28]} 10. Bxg7 {[%emt 0:11:18]} Kxg7 {[%emt 0:00:07]} 11. Bc4 {[%emt 0:00:24]} Nd7 {[%emt 0:03:01]} 12. Ne2 {[%emt 0:14:49]} Nf6 {[%emt 0:24:58]} 13. Nc3 {[%emt 0:01:54]} exd5 {[%emt 0:05:12]} 14. Bxd5 {[%emt 0:00:40]} Be6 {[%emt 0:05:54]} 15. Bxe6 {[%emt 0:06:15]} (15. Bxb7 $2 {loses.} Qxd2+ 16. Kxd2 Rab8 $19) 15... Qxd2+ {[%emt 0:00:45]} 16. Kxd2 {[%emt 0:00:08]} fxe6 {[%emt 0:00:04]} 17. f3 {[%emt 0:01:34]} Nd7 {[%emt 0:00:08]} 18. Ke2 {[%emt 0:00:44]} Ne5 {[%emt 0:00:15]} 19. Rad1 {[%emt 0:00:26]} Rad8 {[%emt 0:09:22] Wards off Rd6} 20. Rxd8 {[%emt 0:07:55]} Rxd8 {[%emt 0:00:01]} 21. Rd1 {[%emt 0:00:14]} Rxd1 {[%emt 0:00:12]} 22. Nxd1 $11 {[%emt 0:00:03][%mdl 4096] Endgame. KN-KN} g5 {[%emt 0:03:37]} 23. Nc3 {[%emt 0:00:40]} Kf6 {[%emt 0:00:39]} 24. Nb5 {[%emt 0:08:13]} Nc6 {[%emt 0:05:52]} 25. Ke3 {[%emt 0:07:10]} a6 {[%emt 0:07:23]} 26. Nd6 {[%emt 0:02:00]} b5 {[%emt 0:00:45]} 27. g3 {[%emt 0:01:29]} Ke7 {[%emt 0:08:36]} 28. Nb7 {[%emt 0:00:22]} c4 {[%emt 0:00:06]} 29. f4 {[%emt 0:01:27]} gxf4+ {[%emt 0:01:39]} 30. gxf4 {[%emt 0:00:05]} Nb4 {[%emt 0:05:54]} 31. a3 {[%emt 0:06:59]} Nc2+ {[%emt 0:02:25]} 32. Kd2 {[%emt 0:00:14]} Nd4 {[%emt 0:00:04]} 33. Ke3 {[%emt 0:02:11] Against Nf3} Nc2+ {[%emt 0:02:39]} 34. Kd2 {[%emt 0:00:04]} Nd4 {[%emt 0:00:05]} 35. Ke3 {[%emt 0:00:04] Wards off Nf3} Nc2+ {[%emt 0:03:14]} 36. Kd2 {[%emt 0:00:18] A rather calm draw.   Weighted Error Value: White=0.02 (flawless) /Black=0.02 (flawless) .  OK:         	White=13    	Black=15} 1/2-1/2

[Event "Hungarian Super League 2024-25"]
[Site "Hungary"]
[Date "2024.11.02"]
[Round "1.35"]
[White "Markus, Robert"]
[Black "Istvanovszki, Martin"]
[Result "1-0"]
[ECO "A36"]
[WhiteElo "2592"]
[BlackElo "2310"]
[Annotator "TA"]
[PlyCount "55"]
[EventDate "2024.10.30"]
[EventType "team-tourn"]
[EventCountry "HUN"]
[SourceTitle "playchess.com"]
[Source "ChessBase"]
[SourceQuality "1"]
[TimeControl "40/5400+30:1800+30"]

{[%evp 9,55,0,3,-2,0,4,2,-5,4,4,0,3,14,6,8,15,28,27,34,36,22,0,0,6,32,35,47,41,48,66,55,34,87,90,445,431,455,458,636,635,1594,1548,1597,1459,29981,29982,29977,29977]} 1. c4 {[%emt 0:00:35]} g6 {[%emt 0:00:52]} 2. Nc3 {[%emt 0:00:11]} Bg7 {[%emt 0:00:15]} 3. g3 {[%emt 0:00:08]} c5 {[%emt 0:01:29]} 4. Bg2 {[%emt 0:00:09]} Nc6 {[%emt 0:00:54]} 5. d3 {[%emt 0:03:03]} d6 {[%emt 0:00:38]} 6. Qd2 {[%emt 0:02:23]} e5 {[%emt 0:05:59]} 7. b3 {[%emt 0:04:06]} Nge7 {[%emt 0:00:43]} 8. Bb2 {[%emt 0:00:24] The position is equal.} O-O {[%emt 0:02:41]} 9. e3 {[%emt 0:00:27]} Be6 {[%emt 0:09:58]} 10. Nd5 {[%emt 0:00:52]} Rb8 {[%emt 0:10:56]} 11. Ne2 {[%emt 0:02:05]} b5 {[%emt 0:07:21]} 12. O-O {[%emt 0:03:12]} Qd7 {[%emt 0:06:39]} 13. Rae1 {[%emt 0:06:22]} Bh3 {[%emt 0:05:12]} 14. Bxh3 {[%emt 0:11:12]} Qxh3 {[%emt 0:00:08]} 15. f4 {[%emt 0:00:16]} Nxd5 {[%emt 0:05:32]} 16. cxd5 {[%emt 0:03:29]} Ne7 {[%emt 0:00:16]} (16... Nb4 $5) 17. e4 {[%emt 0:07:06]} f6 {[%emt 0:10:19]} 18. b4 {[%emt 0:04:35] Threatens to win with bxc5.} c4 {[%emt 0:01:50]} 19. dxc4 {[%emt 0:14:53]} bxc4 {[%emt 0:00:19][%cal Bb5c4,Bc4c3,Bc3b2][%mdl 32]} 20. Qc3 {[%emt 0:00:16]} Rbc8 {[%emt 0:08:41]} (20... Qd7 $14) 21. fxe5 {[%emt 0:01:54][%cal Bf4e5,Be5d6,Bd6e7][%mdl 32]} f5 {[%emt 0:08:06][%mdl 8192] [#] This costs Black the game.} (21... fxe5 $2 {loses.} 22. Nf4 Qg4 23. Ne6 Rxf1+ 24. Kxf1 $18) (21... dxe5 $16 {is more resistant.} 22. d6 Nc6) 22. Nf4 $18 {[%emt 0:06:49]} Qh6 {[%emt 0:00:16]} 23. Qa3 {[%emt 0:00:42]} fxe4 {[%emt 0:03:12]} 24. exd6 {[%emt 0:05:06]} c3 {[%emt 0:03:40] [#] Strongly threatening ...Bd4+.} 25. dxe7 {[%emt 0:01:32]} Bd4+ {[%emt 0:00:15]} 26. Kh1 {[%emt 0:00:26]} Rxf4 {[%emt 0:00:16]} 27. Rxf4 {[%emt 0:01:40]} cxb2 {[%emt 0:00:07]} 28. Qa4 {[%emt 0:00:23] Weighted Error Value: White=0.03 (flawless) /Black=0.63.  Loses game:     	---       	Black=1      Mistake:       	---       	Black=1      Inaccurate:     	---       	Black=3      OK:         	White=9     	Black=3      Best:        	White=3     	---} (28. Rexe4 {gets mated.} b1=Q+ (28... b1=R+ {leads to mate.} 29. Kg2 Rg1+ 30. Kf3 Qh5+ 31. Rg4 Rf1+ 32. Ke2 Qxh2+ 33. Kxf1 Qf2#) (28... b1=R+ 29. Kg2 Rg1+ 30. Kf3 Qh5+ 31. Rg4 Rf1+ 32. Ke2 Qxh2+ 33. Kxf1 Qf2#)) 1-0

[Event "Hungarian Super League 2024-25"]
[Site "Hungary"]
[Date "2024.11.02"]
[Round "1.36"]
[White "Petrisor, Adrian-Marian"]
[Black "Horvath, Dominik"]
[Result "0-1"]
[ECO "B12"]
[WhiteElo "2387"]
[BlackElo "2541"]
[Annotator "TA"]
[PlyCount "84"]
[EventDate "2024.10.30"]
[EventType "team-tourn"]
[EventCountry "HUN"]
[SourceTitle "playchess.com"]
[Source "ChessBase"]
[SourceQuality "1"]
[TimeControl "40/5400+30:1800+30"]

{[%evp 12,84,20,28,22,12,41,35,20,47,42,0,18,0,0,-43,-45,-54,-13,-18,-10,-10,-11,-33,-11,-14,-11,-43,-37,-80,-64,-78,-85,-97,-100,-83,-55,-65,-15,-29,-65,-93,-96,-143,-145,-144,-140,-189,-229,-234,-220,-239,-234,-251,-253,-238,-257,-243,-268,-307,-320,-311,-313,-286,-287,-376,-320,-297,-293,-433,-421,-453,-469,-420,-382]} 1. e4 {[%emt 0:00:51][%cal Be2e4,Be4e5,Be5e6][%mdl 32]} c6 {[%emt 0:01:15]} 2. d4 {[%emt 0:00:11]} d5 {[%emt 0:00:03]} 3. e5 {[%emt 0:00:37]} Bf5 {[%emt 0:01:42]} 4. h4 {[%emt 0:01:18]} h6 {[%emt 0:03:34]} 5. g4 {[%emt 0:01:49]} Be4 {[%emt 0:00:04]} 6. f3 {[%emt 0:00:10]} Bh7 {[%emt 0:00:05] [#]} 7. e6 $1 {[%emt 0:02:16]} Nf6 {[%emt 0:02:59]} 8. Bd3 {[%emt 0:09:53]} Bxd3 {[%emt 0:05:59]} 9. Qxd3 {[%emt 0:01:32]} Qd6 {[%emt 0:00:12] White is slightly better.} 10. exf7+ {[%emt 0:00:47]} Kxf7 {[%emt 0:00:07]} 11. Ne2 {[%emt 0:06:42] Black must now prevent Bf4.} Nbd7 {[%emt 0:03:47]} 12. Bf4 {[%emt 0:16:40]} e5 {[%emt 0:00:18]} 13. dxe5 {[%emt 0:00:32]} Nxe5 {[%emt 0:00:05]} 14. Qc3 {[%emt 0:05:14]} Re8 {[%emt 0:04:04][%cal Oe5d3]} 15. Nd2 {[%emt 0:01:15] [#]} Nd3+ $1 {[%emt 0:05:37]} 16. Qxd3 {[%emt 0:00:10]} Qxf4 {[%emt 0:00:03]} 17. O-O-O {[%emt 0:06:10]} Qe3 {[%emt 0:00:26]} 18. Qxe3 {[%emt 0:02:26]} Rxe3 {[%emt 0:00:04]} 19. Nd4 {[%emt 0:00:17]} g6 {[%emt 0:08:56] Wards off Nf5. White is weak on the dark squares} 20. Rde1 {[%emt 0:14:38]} Rxe1+ {[%emt 0:00:21]} 21. Rxe1 {[%emt 0:00:05]} Bd6 {[%emt 0:00:26]} 22. Kd1 {[%emt 0:02:48]} Bg3 {[%emt 0:04:33]} 23. Rh1 {[%emt 0:00:23]} Re8 {[%emt 0:03:22]} 24. N2b3 {[%emt 0:02:24]} Bc7 {[%emt 0:25:19] Black is more active.} ({Better is} 24... h5 $15 25. gxh5 Nxh5) 25. a4 {[%emt 0:10:45]} h5 {[%emt 0:05:02]} 26. g5 {[%emt 0:00:52] Black keeps a firm grip on the game.} Nd7 {[%emt 0:00:18]} 27. Re1 {[%emt 0:07:46]} (27. Nc1 $142) 27... Rxe1+ $17 {[%emt 0:02:23]} 28. Kxe1 {[%emt 0:00:01][%mdl 4096] Endgame. KBN-KNN} Bg3+ {[%emt 0:00:08]} 29. Ke2 {[%emt 0:00:16]} (29. Kf1 $17) 29... c5 $19 {[%emt 0:02:07]} (29... Bxh4 30. f4 $15) 30. Nb5 {[%emt 0:00:12]} a6 {[%emt 0:00:10]} ({And not} 30... Bxh4 31. f4 $11) 31. Nc3 {[%emt 0:00:06]} Ke6 {[%emt 0:00:13][%cal Oc5c4]} ({Don't do} 31... Bxh4 32. Nxd5 Ke6 (32... Bxg5 $2 33. Na5 $19) 33. c4) 32. Na5 {[%emt 0:01:26]} b6 {[%emt 0:01:05]} 33. Nc6 {[%emt 0:00:45]} Bxh4 {[%emt 0:01:37]} 34. f4 {[%emt 0:00:57]} d4 {[%emt 0:01:49]} 35. Nd1 {[%emt 0:01:05]} Kd6 {[%emt 0:02:48]} 36. Nd8 {[%emt 0:00:14]} c4 {[%emt 0:01:56]} 37. Kf3 {[%emt 0:01:19]} Be1 {[%emt 0:02:52]} 38. Nf7+ {[%emt 0:02:44]} Ke6 {[%emt 0:02:28]} 39. Nd8+ {[%emt 0:00:28] [#]} Kd5 $1 {[%emt 0:00:26]} 40. c3 {[%emt 0:00:00]} (40. Nf7 {keeps fighting.}) 40... dxc3 {[%emt 0:00:00]} 41. bxc3 {[%emt 0:00:36]} Bd2 {[%emt 0:02:11]} 42. Nf7 {[%emt 0:01:41]} b5 {[%emt 0:03:32] Weighted Error Value: White=0.20 (precise) /Black=0.07 (flawless) .  Mistake:       	White=3     	Black=1      Inaccurate:     	White=5     	Black=3      OK:         	White=10    	Black=18     Best:        	White=5     	Black=4      Strong:       	---       	Black=1} 0-1

[Event "Hungarian Super League 2024-25"]
[Site "Hungary"]
[Date "2024.11.02"]
[Round "1.37"]
[White "Medvegy, Zoltan"]
[Black "Blasko, Istvan"]
[Result "1-0"]
[ECO "C10"]
[WhiteElo "2514"]
[BlackElo "2259"]
[Annotator "TA"]
[PlyCount "92"]
[EventDate "2024.10.30"]
[EventType "team-tourn"]
[EventCountry "HUN"]
[SourceTitle "playchess.com"]
[Source "ChessBase"]
[SourceQuality "1"]
[TimeControl "40/5400+30:1800+30"]

{[%evp 18,92,55,10,12,9,0,7,0,0,7,0,0,0,0,0,0,0,6,8,7,0,0,3,0,7,2,0,14,14,14,0,0,0,0,0,0,0,0,0,0,0,0,0,13,13,42,42,42,42,42,42,42,42,42,42,64,42,42,35,99,53,68,37,118,125,123,123,125,124,125,125,131,125,196,198,29997]} 1. e4 {[%emt 0:00:36]} e6 {[%emt 0:00:52]} 2. d4 {[%emt 0:00:11]} d5 {[%emt 0:00:06]} 3. Nc3 {[%emt 0:00:06]} dxe4 {[%emt 0:00:19]} 4. Nxe4 {[%emt 0:00:07]} Nd7 {[%emt 0:00:10]} 5. Nf3 {[%emt 0:00:40]} Be7 {[%emt 0:00:22]} 6. Bd3 {[%emt 0:02:12]} Ngf6 {[%emt 0:00:09]} 7. Nxf6+ {[%emt 0:00:30]} Bxf6 {[%emt 0:00:12]} 8. O-O {[%emt 0:02:37]} c5 {[%emt 0:05:08]} 9. c3 {[%emt 0:01:40]} O-O {[%emt 0:12:50]} 10. Bf4 {[%emt 0:08:05]} cxd4 {[%emt 0:17:27]} 11. cxd4 {[%emt 0:00:08]} Nb6 {[%emt 0:00:37]} 12. Be4 {[%emt 0:04:19]} Nd5 {[%emt 0:02:04] The position is equal.} 13. Be5 {[%emt 0:02:32]} Be7 {[%emt 0:09:41]} 14. Qc2 {[%emt 0:18:18]} f5 {[%emt 0:00:32]} 15. Bxd5 {[%emt 0:04:34]} Qxd5 {[%emt 0:00:51]} 16. Ne1 {[%emt 0:00:00]} Bd7 {[%emt 0:04:09][%cal Bc8d7,Bd7c6,Bc6b5,Bb5c4,Bc4d5][%mdl 32]} 17. Nd3 {[%emt 0:05:54]} Rac8 {[%emt 0:08:02]} 18. Qd2 {[%emt 0:00:33]} Bc6 {[%emt 0:02:37][%csl Gc6][%cal Rd5g2] [#]} 19. f3 {[%emt 0:06:20]} Qd7 {[%emt 0:09:58]} 20. Rfe1 {[%emt 0:00:38]} Bb5 {[%emt 0:04:40]} 21. Nf4 {[%emt 0:08:20]} Bg5 {[%emt 0:01:38]} 22. Qf2 {[%emt 0:05:46]} Bxf4 {[%emt 0:00:42]} 23. Bxf4 {[%emt 0:00:02]} Bc4 {[%emt 0:01:29]} 24. d5 {[%emt 0:08:56]} Bxd5 {[%emt 0:01:12]} (24... Qxd5 25. b3 Bd3 26. Rad1 $16) 25. Qxa7 {[%emt 0:00:37]} Rc2 {[%emt 0:04:07]} 26. Rac1 {[%emt 0:10:13]} Rfc8 {[%emt 0:02:12]} (26... Rxb2 $2 {perishes.} 27. Rc7 Rxa2 28. Rxd7 $18 (28. Qxa2 $2 Qxc7 $17)) 27. Rxc2 {[%emt 0:04:17]} Rxc2 {[%emt 0:00:03]} 28. Rc1 {[%emt 0:00:26]} Rxc1+ {[%emt 0:04:02]} 29. Bxc1 $11 {[%emt 0:00:03][%mdl 4096] Endgame. KQB-KQB} Qc7 {[%emt 0:02:39]} 30. Bd2 {[%emt 0:01:41]} Qd7 {[%emt 0:03:14]} 31. Bc3 {[%emt 0:01:28]} Bc6 {[%emt 0:00:44]} 32. Qb8+ {[%emt 0:00:29]} Qe8 {[%emt 0:00:52]} 33. Qe5 {[%emt 0:00:16]} Qd7 {[%emt 0:00:04]} 34. Kf2 {[%emt 0:00:47]} h6 {[%emt 0:00:28]} 35. b3 {[%emt 0:00:48]} b5 {[%emt 0:00:53]} 36. Ke3 {[%emt 0:00:52]} Bd5 {[%emt 0:01:00]} 37. Bd4 {[%emt 0:00:40]} Kh7 {[%emt 0:01:15]} 38. Kd2 {[%emt 0:00:21]} g5 {[%emt 0:00:41]} (38... Qe7 $14) 39. Qh8+ {[%emt 0:03:12]} Kg6 {[%emt 0:00:02]} 40. Qf6+ {[%emt 0:00:00]} Kh7 {[%emt 0:00:00]} ({Better is} 40... Kh5 $14) 41. g4 $16 {[%emt 0:14:28] [#] White wants to mate with Qh8+. White is more active.} fxg4 {[%emt 0:02:46]} ({Weaker is} 41... Bxf3 42. Qh8+ Kg6 43. Qg8+) 42. fxg4 {[%emt 0:00:11] Threatening mate with Qh8+.} e5 {[%emt 0:01:14]} 43. Qxe5 {[%emt 0:00:07]} ({Of course not} 43. Bxe5 $6 Bf3+ 44. Ke3 Bxg4 $11) 43... Qf7 {[%emt 0:01:31]} 44. Kc3 {[%emt 0:00:38]} Bf3 {[%emt 0:00:50]} 45. h3 {[%emt 0:04:39]} Bg2 {[%emt 0:00:33]} (45... Bd5 $16 46. Kb4 Bg2) 46. Qxb5 $18 Qe8 $2 {Weighted Error Value: White=0.05 (flawless) /Black=0.09 (flawless) .  Mistake:       	---       	Black=4      Inaccurate:     	White=1     	Black=1      OK:         	White=19    	Black=14     Best:        	White=1     	Black=1} (46... Qe6 $18) 1-0

[Event "Hungarian Super League 2024-25"]
[Site "Hungary"]
[Date "2024.11.02"]
[Round "1.38"]
[White "Ivan-Gal, Hanna Krisztina"]
[Black "Aczel, Gergely"]
[Result "0-1"]
[ECO "B15"]
[WhiteElo "2185"]
[BlackElo "2488"]
[Annotator "TA"]
[PlyCount "98"]
[EventDate "2024.10.30"]
[EventType "team-tourn"]
[EventCountry "HUN"]
[SourceTitle "playchess.com"]
[Source "ChessBase"]
[SourceQuality "1"]
[TimeControl "40/5400+30:1800+30"]

{[%evp 21,98,23,14,11,25,9,20,1,20,0,37,25,25,-3,31,9,16,0,0,0,0,0,15,12,12,0,6,-8,-15,0,0,-69,-67,-71,-90,-169,-164,-161,-102,-98,-82,-98,-50,-135,-110,-138,-125,-187,-185,-179,0,-153,-152,-268,-251,-268,-261,-266,-237,-252,-237,-251,-200,-443,-447,-469,-477,-442,-471,-497,-497,-496,-340,-481,-477,-432,-408,-627,-616]} 1. e4 {[%emt 0:00:38]} c6 {[%emt 0:00:37]} 2. d4 {[%emt 0:00:10]} d5 {[%emt 0:00:05]} 3. Nc3 {[%emt 0:00:07]} dxe4 {[%emt 0:00:06]} 4. Nxe4 {[%emt 0:00:06]} Nf6 {[%emt 0:00:04]} 5. Nxf6+ {[%emt 0:00:09]} exf6 {[%emt 0:00:06]} 6. c3 {[%emt 0:00:10]} Bd6 {[%emt 0:00:07]} 7. Bd3 {[%emt 0:00:15]} O-O {[%emt 0:00:08]} 8. Ne2 {[%emt 0:00:07][%cal Bg1e2,Be2g3,Bg3e4][%mdl 32]} Re8 {[%emt 0:00:07]} 9. O-O {[%emt 0:00:16]} Nd7 {[%emt 0:00:10]} 10. Bf4 {[%emt 0:00:17]} Nf8 {[%emt 0:00:23]} 11. Bxd6 {[%emt 0:00:28]} Qxd6 {[%emt 0:00:06]} 12. Ng3 {[%emt 0:00:12]} g6 {[%emt 0:04:40]} 13. Ne4 {[%emt 0:00:09]} Qd8 {[%emt 0:00:30]} 14. Re1 {[%emt 0:01:18][%cal Oe4f6] [#] Nxf6+! would now be deadly. The position is equal.} Kg7 {[%emt 0:07:51]} 15. Qf3 {[%emt 0:05:32]} b6 {[%emt 0:24:29]} 16. Qg3 {[%emt 0:10:36]} Bf5 {[%emt 0:08:31]} 17. Nd2 {[%emt 0:09:26]} Be6 {[%emt 0:03:13]} (17... Bxd3 {simplifies} 18. Rxe8 Qxe8 19. Qxd3 Ne6) 18. h4 {[%emt 0:11:30]} h5 {[%emt 0:03:24]} 19. b3 {[%emt 0:18:14]} Qd7 {[%emt 0:11:08]} 20. Rad1 {[%emt 0:01:43]} Bg4 {[%emt 0:02:05]} 21. f3 {[%emt 0:01:52]} Be6 {[%emt 0:02:43]} 22. Ne4 {[%emt 0:03:33]} Rad8 {[%emt 0:01:17]} 23. Bc2 {[%emt 0:06:33]} Bf5 {[%emt 0:01:37]} 24. c4 {[%emt 0:05:56]} Bxe4 {[%emt 0:04:25]} 25. fxe4 {[%emt 0:01:28]} Qe7 {[%emt 0:03:17]} 26. d5 {[%emt 0:04:39]} (26. Rf1 $11) 26... Nd7 $15 {[%emt 0:06:06]} 27. dxc6 {[%emt 0:04:33]} Ne5 {[%emt 0:01:04]} 28. Rxd8 {[%emt 0:06:15]} (28. Rd5 $17) 28... Rxd8 $19 {[%emt 0:00:08]} 29. Rd1 {[%emt 0:00:54]} Rc8 {[%emt 0:00:36]} (29... Nxc6 $19 {And now ...Nb4 would win.} 30. Rxd8 Qxd8) 30. Rd5 $17 {[%emt 0:00:28]} Rxc6 {[%emt 0:00:12]} 31. Bd1 {[%emt 0:00:55]} Re6 {[%emt 0:00:37]} ({Better is} 31... Qa3 $17 {Hoping for ...Rxc4.} 32. Qf2 Re6) 32. Bf3 {[%emt 0:01:53]} (32. Bxh5 $15 Qa3 33. Kh2) 32... Qa3 {[%emt 0:04:12]} 33. Qf2 {[%emt 0:00:16]} Qc1+ {[%emt 0:01:14]} 34. Qf1 {[%emt 0:02:35]} (34. Kh2 $17) 34... Qf4 $19 {[%emt 0:01:41]} 35. Qf2 {[%emt 0:00:15]} Qc1+ {[%emt 0:02:15]} 36. Qf1 $1 {[%emt 0:00:05]} Qc3 {[%emt 0:00:08] Black is more active.} 37. Rd1 {[%emt 0:02:33]} (37. Qe2 $17 {was worth a try.}) 37... Qc2 {[%emt 0:02:19]} 38. Qe2 {[%emt 0:01:29]} Nxf3+ {[%emt 0:00:31]} 39. Qxf3 {[%emt 0:00:03]} Qxa2 {[%emt 0:00:06][%mdl 4096] Endgame. KQR-KQR} ({Not} 39... Qxe4 40. Qxe4 Rxe4 41. Rd7 $17) 40. Qd3 {[%emt 0:00:00]} Qb2 {[%emt 0:00:00]} 41. Rd2 {[%emt 0:13:15]} Qe5 {[%emt 0:07:22]} 42. b4 $2 {[%emt 0:02:57] [#]} (42. g3 {might work better.}) 42... Qxe4 {[%emt 0:00:24]} 43. Qxe4 {[%emt 0:00:15]} Rxe4 {[%emt 0:00:05] KR-KR} 44. Rc2 {[%emt 0:00:06]} Rxh4 {[%emt 0:04:11]} 45. c5 {[%emt 0:00:05]} bxc5 {[%emt 0:00:05]} (45... Rxb4 $2 {loses.} 46. c6 Re4 (46... Rb1+ $2 47. Kf2 $18) 47. c7 $18) 46. bxc5 {[%emt 0:00:05]} Rd4 {[%emt 0:00:18]} 47. c6 {[%emt 0:00:11]} (47. Kf2 {was the only chance.}) 47... Rd8 {[%emt 0:00:05]} 48. Ra2 {[%emt 0:00:32]} Rc8 {[%emt 0:00:15]} 49. Rxa7 {[%emt 0:00:31]} (49. Ra6 $142) 49... Rxc6 {[%emt 0:00:06] Weighted Error Value: White=0.38/Black=0.20 (precise) .  Mistake:       	White=8     	Black=2      Inaccurate:     	White=1     	Black=3      OK:         	White=6     	Black=19     Best:        	White=3     	Black=1      Strong:       	White=1     	---} 0-1